Workbook

Sheet Obsah
D4: B2 Vývoj školství na regionální úrovni
D5: Zdroje dat jsou uvedeny v zápatí jednotlivých tabulek
F7: Obsah
D9: Tabulka 1 | F9: =B2.1!H4&" "&B2.1!D5 -> Regionální školství – školy, děti, žáci, studenti/dívky ve školním roce 2004/05 až 2013/14 – podle zřizovatele
D11: Tabulka 2 | F11: =B2.2!H4&" "&B2.2!D5 -> Učitelé MŠ, ZŠ, SŠ, konzervatoří, VOŠ a škol pro žáky se SVP – struktura učitelů v letech 2006 až 2013 – podle nejvyššího dosaženého vzdělání
D13: Tabulka 3 | F13: =B2.3!H4&" "&B2.3!D5 -> Učitelé MŠ, ZŠ, SŠ, konzervatoří, VOŠ a škol pro žáky se SVP – struktura učitelů v letech 2006 až 2013 – podle věku
D15: Tabulka 4 | F15: =B2.4!H4&" "&B2.4!D5 -> Regionální školství – výdaje v běžných cenách v letech 2004 až 2013
D17: Tabulka 5 | F17: =B2.5!H4&" "&B2.5!D5 -> Regionální školství – týdenní rozsah hodin přímé pedagogické činnosti (míra vyučovací povinnosti) učitelů v letech 2004 až 2013
D19: Tabulka 6 | F19: =B2.6!H4&" "&B2.6!D5 -> Regionální školství – přepočtené počty zaměstnanců v letech 2004 až 2013
D21: Tabulka 7 | F21: =B2.7!$H$4&" "&B2.7!$D$5 -> Regionální školství – průměrné měsíční mzdy v letech 2004 až 2013
E22: Obrazová příloha
D23: Graf 1 | F23: ='GB1'!$G$4&" "&'GB1'!$D$5 -> Regionální školství – školy ve školním roce 2004/05 až 2013/14 – podle druhu školy
D25: Graf 2 | F25: ='GB2'!$G$4&" "&'GB2'!$D$5 -> Regionální školství – děti/žáci/studenti ve školním roce 2004/05 až 2013/14 – podle druhu školy
D27: Graf 3 | F27: ='GB3'!$H$4&" "&'GB3'!$D$5 -> Regionální školství – děti/žáci/studenti ve školním roce 2004/05 a 2013/14 – podle zřizovatele
D29: Graf 4 | F29: ='GB4'!$G$4&" "&'GB4'!$D$5 -> Regionální školství – všichni zřizovatelé – přepočtené počty zaměstnanců a učitelů, průměrné nominální a reálné mzdy v letech 2004 až 2013

Sheet B2.1
D4: Tab. B2.1: | H4: Regionální školství – školy, děti, žáci, studenti/dívky
D5: ve školním roce 2004/05 až 2013/14 – podle zřizovatele
D7: Zřizovatel | J7: 2003/04 | K7: 2004/05 | L7: 2005/06 | M7: 2006/07 | N7: 2007/08 | O7: 2008/09 | P7: 2009/10 | Q7: 2010/11 | R7: 2011/12 | S7: 2012/13 | T7: 2013/14
J11: 1) | K11: 1)
D12: Školy
E13: Celkem2) | J13: . | K13: . | L13: 8681 | M13: 8591 | N13: 8541 | O13: 8493 | P13: 8472 | Q13: 8474 | R13: 8490 | S13: 8426 | T13: 8442
E14: v tom | F14: veřejný | J14: . | K14: . | L14: 8140 | M14: 8040 | N14: 7978 | O14: 7911 | P14: 7880 | Q14: 7853 | R14: 7843 | S14: 7749 | T14: 7721
F15: v tom | G15: MŠMT | J15: . | K15: . | L15: 62 | M15: 62 | N15: 62 | O15: 64 | P15: 64 | Q15: 64 | R15: 64 | S15: 60 | T15: 61
G16: obec | J16: . | K16: . | L16: 6660 | M16: 6613 | N16: 6576 | O16: 6537 | P16: 6516 | Q16: 6506 | R16: 6507 | S16: 6500 | T16: 6489
G17: jiný resort | J17: . | K17: . | L17: 9 | M17: 6 | N17: 8 | O17: 8 | P17: 8 | Q17: 8 | R17: 8 | S17: 8 | T17: 6
G18: kraj | J18: . | K18: . | L18: 1409 | M18: 1359 | N18: 1332 | O18: 1302 | P18: 1292 | Q18: 1275 | R18: 1264 | S18: 1181 | T18: 1165
F19: privátní sektor | J19: . | K19: . | L19: 448 | M19: 458 | N19: 469 | O19: 484 | P19: 495 | Q19: 522 | R19: 543 | S19: 572 | T19: 617
F20: církev | J20: . | K20: . | L20: 93 | M20: 93 | N20: 94 | O20: 98 | P20: 97 | Q20: 99 | R20: 104 | S20: 105 | T20: 107
D21: Děti/žáci/studenti
E22: Celkem | J22: 1887775 | K22: 1850642 | L22: 1808650 | M22: 1769701 | N22: 1737704 | O22: 1713523 | P22: 1696911 | Q22: 1684376 | R22: 1671275 | S22: 1665679 | T22: 1672036
E23: v tom | F23: veřejný | J23: 1780215 | K23: 1741851 | L23: 1698818 | M23: 1658083 | N23: 1625603 | O23: 1600200 | P23: 1583325 | Q23: 1575784 | R23: 1569033 | S23: 1567574 | T23: 1574864
F24: v tom | G24: MŠMT | J24: 3335 | K24: 3251 | L24: 3267 | M24: 3213 | N24: 3323 | O24: 3391 | P24: 3467 | Q24: 3301 | R24: 3182 | S24: 2931 | T24: 2815
G25: obec | J25: 1234243 | K25: 1195949 | L25: 1157785 | M25: 1121825 | N25: 1096645 | O25: 1077575 | P25: 1067854 | Q25: 1077462 | R25: 1095653 | S25: 1119660 | T25: 1146572
G26: jiný resort | J26: 2086 | K26: 1903 | L26: 1502 | M26: 951 | N26: 1226 | O26: 1476 | P26: 1803 | Q26: 1889 | R26: 1853 | S26: 1792 | T26: 1782
G27: kraj | J27: 540551 | K27: 540748 | L27: 536264 | M27: 532094 | N27: 524409 | O27: 517758 | P27: 510201 | Q27: 493132 | R27: 468345 | S27: 443191 | T27: 423695
F28: privátní sektor | J28: 91687 | K28: 92665 | L28: 93533 | M28: 95009 | N28: 95229 | O28: 96051 | P28: 96285 | Q28: 91105 | R28: 84289 | S28: 79647 | T28: 78203
F29: církev | J29: 15873 | K29: 16126 | L29: 16299 | M29: 16609 | N29: 16872 | O29: 17272 | P29: 17301 | Q29: 17487 | R29: 17953 | S29: 18458 | T29: 18969
E30: Z toho dívky/ženy | J30: 924356 | K30: 908094 | L30: 886522 | M30: 867709 | N30: 852673 | O30: 841083 | P30: 831991 | Q30: 825353 | R30: 819122 | S30: 816918 | T30: 819363
E31: v tom | F31: veřejný | J31: 865022 | K31: 847032 | L31: 824351 | M31: 804425 | N31: 789099 | O31: 776928 | P31: 769193 | Q31: 766073 | R31: 763712 | S31: 764068 | T31: 767296
F32: v tom | G32: MŠMT | J32: 1088 | K32: 1090 | L32: 1087 | M32: 1097 | N32: 1100 | O32: 1177 | P32: 1205 | Q32: 1097 | R32: 1078 | S32: 1025 | T32: 957
G33: obec | J33: 598406 | K33: 579839 | L33: 560695 | M33: 543001 | N33: 531342 | O33: 521692 | P33: 517546 | Q33: 522878 | R33: 532117 | S33: 544631 | T33: 557811
G34: jiný resort | J34: 487 | K34: 397 | L34: 332 | M34: 260 | N34: 245 | O34: 297 | P34: 342 | Q34: 367 | R34: 333 | S34: 318 | T34: 343
G35: kraj | J35: 265041 | K35: 265706 | L35: 262237 | M35: 260067 | N35: 256412 | O35: 253762 | P35: 250100 | Q35: 241731 | R35: 230184 | S35: 218094 | T35: 208188
F36: privátní sektor | J36: 49362 | K36: 50935 | L36: 51902 | M36: 52902 | N36: 53054 | O36: 53451 | P36: 52081 | Q36: 48477 | R36: 44410 | S36: 41552 | T36: 40501
F37: církev | J37: 9972 | K37: 10127 | L37: 10269 | M37: 10382 | N37: 10520 | O37: 10704 | P37: 10717 | Q37: 10803 | R37: 11000 | S37: 11298 | T37: 11566
D38: Komentáře: | T38: Zdroj: databáze MŠMT
D39: 1) | E39: Ve školním roce 2004/05 údaje za školy neuvádíme vzhledem k nekonzistenci vykazování počtu škol.
D40: 2) | E40: Počet právních subjektů vykonávajících činnost školy.

Sheet B2.2
D4: Tab. B2.2: | H4: Učitelé MŠ, ZŠ, SŠ, konzervatoří, VOŠ a škol pro žáky se SVP – struktura
D5: učitelů v letech 2006 až 2013 – podle nejvyššího dosaženého vzdělání
D7: Nejvyšší dosažené vzdělání | J7: 2006 | K7: 2007 | L7: 2008 | M7: 2009 | N7: 2010 | O7: 2011 | P7: 2012 | Q7: 2013
D12: Učitelé (bez ředitelů a zástupců ředitele/řídících pracovníků)1)
E13: Střední a střední vzdělání s výučním listem | J13: 0.0181741121 | K13: 0.01700769182 | L13: 0.01656977142 | M13: 0.015556686 | N13: 0.01459545487 | O13: 0.01313329981 | P13: 0.01283091914 | Q13: 0.01156504895
E14: Střední vzdělání s maturitní zkouškou | J14: 0.3021912926 | K14: 0.2989278328 | L14: 0.2982748756 | M14: 0.2969489104 | N14: 0.2902804181 | O14: 0.2728534731 | P14: 0.2713507177 | Q14: 0.2683410683
E15: Vyšší odborné vzdělání | J15: 0.01132271979 | K15: 0.01161028015 | L15: 0.01186658199 | M15: 0.01213897067 | N15: 0.01266667561 | O15: 0.02619535648 | P15: 0.02484332668 | Q15: 0.02300915666
E16: Vysokoškolské vzdělání | J16: 0.6683118755 | K16: 0.6724541952 | L16: 0.673288771 | M16: 0.6753554329 | N16: 0.6824574514 | O16: 0.6878178706 | P16: 0.6909750365 | Q16: 0.697084726
D17: Komentáře: | Q17: Zdroj: databáze MŠMT
D18: 1) | E18: Údaje o učitelích jsou uvedeny pouze za školy zřizované MŠMT, obcemi a kraji. Vzhledem k zavedení klasifikace CZ-ISCO od roku 2011 byla data za předchozí roky přepočtena tak, aby byla v jednotlivých letech porovnatelná. Z toho důvodu se publikovaná data mohou lišit od údajů zveřejněných v minulých letech.

Sheet B2.3
D4: Tab. B2.3: | H4: Učitelé MŠ, ZŠ, SŠ, konzervatoří, VOŠ a škol pro žáky se SVP – struktura
D5: učitelů v letech 2006 až 2013 – podle věku
D7: Věk | J7: 2006 | K7: 2007 | L7: 2008 | M7: 2009 | N7: 2010 | O7: 2011 | P7: 2012 | Q7: 2013
D12: Učitelé (bez ředitelů a zástupců ředitele/řídících pracovníků)1)
E13: do 25 let | J13: 0.03282207513 | K13: 0.03201554263 | L13: 0.03059181978 | M13: 0.03031888148 | N13: 0.03058448221 | O13: 0.02813547544 | P13: 0.02642213501 | Q13: 0.02602283499
E14: 26–35 let | J14: 0.1981320863 | K14: 0.1946635562 | L14: 0.1913355388 | M14: 0.1894211856 | N14: 0.1880850037 | O14: 0.1787073694 | P14: 0.1713896768 | Q14: 0.164065482
E15: 36–45 let | J15: 0.3128766015 | K15: 0.3038832177 | L15: 0.2945448622 | M15: 0.281964168 | N15: 0.2707062742 | O15: 0.2694453183 | P15: 0.2662009776 | Q15: 0.2671403823
E16: 46–55 let | J16: 0.302747599 | K16: 0.3123457587 | L16: 0.3221601178 | M16: 0.3343866458 | N16: 0.3427538046 | O16: 0.3597632891 | P16: 0.3606962258 | Q16: 0.3570531794
E17: 56–65 let | J17: 0.1432984214 | K17: 0.1460212653 | L17: 0.148393376 | M17: 0.1500876735 | N17: 0.1541459008 | O17: 0.1546147372 | P17: 0.1655550762 | Q17: 0.175314039
E18: 66 a více let | J18: 0.01012321669 | K18: 0.01107065939 | L18: 0.01297428551 | M18: 0.01382144565 | N18: 0.01372453445 | O18: 0.009333810567 | P18: 0.009735908574 | Q18: 0.01040408241
D19: Komentáře: | Q19: Zdroj: databáze MŠMT
D20: 1) | E20: Údaje o učitelích jsou uvedeny pouze za školy zřizované MŠMT, obcemi a kraji. Vzhledem k zavedení klasifikace CZ-ISCO od roku 2011 byla data za předchozí roky přepočtena tak, aby byla v jednotlivých letech porovnatelná. Z toho důvodu se publikovaná data mohou lišit od údajů zveřejněných v minulých letech.

Sheet B2.4
D4: Tab. B2.4: | H4: Regionální školství – výdaje v běžných cenách
D5: v letech 2004 až 2013
T6: v tis. Kč
J7: 2003 | K7: 2004 | L7: 2005 | M7: 2006 | N7: 2007 | O7: 2008 | P7: 2009 | Q7: 2010 | R7: 2011 | S7: 2012 | T7: 2013
D12: Výdaje na regionální školství z rozpočtů kapitoly 333-MŠMT; kapitoly 700-Obce a DSO, KÚ1)
E13: Celkem | J13: 88719423.2 | K13: 92959097.38 | L13: 95531621.31 | M13: 103098700.1 | N13: =N19+N31+N25 -> 105368849.9 | O13: 109433676.9 | P13: 120051447.6 | Q13: 118543695.7 | R13: 120189926.9 | S13: 118606446.9 | T13: 119727309.6
E14: v tom | F14: neinvestiční výdaje | J14: 82040858.4 | K14: 84577281.35 | L14: 87592340.97 | M14: 92398846.95 | N14: =N20+N26+N32 -> 97025341.28 | O14: 98871269.89 | P14: 105673231.8 | Q14: 105114467.8 | R14: 107893267.7 | S14: 109674112.2 | T14: 109349783.8
F15: investiční výdaje | J15: 6678564.8 | K15: 8381816.03 | L15: 7939280.34 | M15: 10699853.18 | N15: 8343508.62 | O15: 10562407.03 | P15: 14378215.82 | Q15: 13429227.89 | R15: 12296659.11 | S15: 8932334.636 | T15: 10377525.72
E16: v % | F16: neinvestiční výdaje | J16: 0.9247226305 | K16: 0.9098332894 | L16: 0.916893692 | M16: 0.8962173804 | N16: =N14/N13 -> 0.9208161745 | O16: =O14/O13 -> 0.9034812013 | P16: 0.8802328826 | Q16: 0.8867089501 | R16: =R14/R13 -> 0.8976897696 | S16: =S14/S13 -> 0.9246892992 | T16: =T14/T13 -> 0.9133236539
F17: investiční výdaje | J17: 0.07527736948 | K17: 0.09016671059 | L17: 0.08310630795 | M17: 0.1037826196 | N17: =N15/N13 -> 0.07918382547 | O17: =O15/O13 -> 0.09651879867 | P17: 0.1197671174 | Q17: 0.1132910499 | R17: =R15/R13 -> 0.1023102304 | S17: =S15/S13 -> 0.07531070084 | T17: =T15/T13 -> 0.08667634609
D18: Výdaje na regionální školství z rozpočtu kapitoly 333-MŠMT
E19: Celkem | J19: 67305642.53 | K19: 69859440.23 | L19: 72729690.35 | M19: 76156420.43 | N19: 79497225.91 | O19: 82132513.41 | P19: 88396466.66 | Q19: 85135869.57 | R19: =R20+R21 -> 90448214.59 | S19: 90136726.18 | T19: =T20+T21 -> 90492763.3
E20: v tom | F20: neinvestiční výdaje | J20: 66716406.41 | K20: 69066812.59 | L20: 72026925.72 | M20: 75554469.66 | N20: 79062285.83 | O20: 81611233.89 | P20: 87913952.1 | Q20: 84879289.09 | R20: 90116536.07 | S20: 90055275.64 | T20: 90287013.7
F21: investiční výdaje | J21: 589236.12 | K21: 792627.64 | L21: 702764.63 | M21: 601950.77 | N21: 434940.08 | O21: 521279.52 | P21: 482514.56 | Q21: 256580.48 | R21: 331678.5129 | S21: 81450.53429 | T21: 205749.6
E22: v % | F22: neinvestiční výdaje | J22: 0.9912453682 | K22: 0.9886539652 | L22: 0.9903373075 | M22: 0.9920958631 | N22: 0.9945288647 | O22: 0.9936531892 | P22: 0.9945414723 | Q22: 0.9969862235 | R22: =R20/R19 -> 0.9963329457 | S22: =S20/S19 -> 0.9990963668 | T22: =T20/T19 -> 0.9977263419
F23: investiční výdaje | J23: 0.008754631824 | K23: 0.0113460348 | L23: 0.009662692452 | M23: 0.007904136862 | N23: 0.005471135313 | O23: 0.006346810762 | P23: 0.005458527679 | Q23: 0.003013776465 | R23: =R21/R19 -> 0.003667054285 | S23: =S21/S19 -> 0.0009036331554 | T23: =T21/T19 -> 0.002273658053
D24: Transfery z kapitoly 333-MŠMT do místních rozpočtů1)
E25: Celkem | J25: -62873585.95 | K25: -65467664.94 | L25: -68546171.83 | M25: -72430196.85 | N25: -75098157.17 | O25: -78469683.45 | P25: -83397045.66 | Q25: -80102122.59 | R25: =R26+R27 -> -84823635.86 | S25: -84756049.61 | T25: -84956879.8
E26: v tom | F26: neinvestiční | J26: -62788596.86 | K26: -65433125.76 | L26: -68474409.01 | M26: -72362645.73 | N26: -75090241.69 | O26: -78252961.46 | P26: -83342793.92 | Q26: -80084782.18 | R26: -84724903.78 | S26: -84740360.17 | T26: -84956879.8
F27: investiční | J27: -84989.09 | K27: -34539.18 | L27: -71762.82 | M27: -67551.12 | N27: -7915.48 | O27: -216721.99 | P27: -54251.74 | Q27: -17340.41 | R27: -98732.0894 | S27: -15689.43805 | T27: 0
E28: v % | F28: neinvestiční | J28: 0.9986482545 | K28: 0.9994724238 | L28: 0.9989530733 | M28: 0.9990673625 | N28: 0.9998945982 | O28: 0.9972381437 | P28: 0.9993494765 | Q28: 0.9997835212 | R28: =R26/R25 -> 0.9988360309 | S28: =S26/S25 -> 0.9998148871 | T28: =T26/T25 -> 1
F29: investiční | J29: 0.00135174555 | K29: 0.0005275761711 | L29: 0.001046926737 | M29: 0.0009326375316 | N29: 0.0001054017875 | O29: 0.002761856305 | P29: 0.0006505235236 | Q29: 0.0002164787828 | R29: =R27/R25 -> 0.00116396908 | S29: =S27/S25 -> 0.000185112899 | T29: =T27/T25 -> 0
D30: Výdaje na regionální školství z rozpočtu kapitoly 700-Obce a DSO, KÚ
E31: Celkem | J31: 84287366.62 | K31: 88567322.09 | L31: 91348102.79 | M31: 99372476.55 | N31: =N32+N33 -> 100969781.2 | O31: =O32+O33 -> 105770847 | P31: 115052026.6 | Q31: =Q32+Q33 -> 113509948.7 | R31: =R32+R33 -> 114565348.1 | S31: 113225770.3 | T31: 114191426.1
E32: v tom | F32: neinvestiční výdaje | J32: 78113048.85 | K32: 80943594.52 | L32: 84039824.26 | M32: 89207023.02 | N32: =93053729.65-1.02-431.49 -> 93053297.14 | O32: =95514531.99-36.78-1497.75 -> 95512997.46 | P32: 101102073.6 | Q32: 100319960.8 | R32: 102501635.4 | S32: 104359196.7 | T32: 104019649.9
F33: investiční výdaje | J33: 6174317.77 | K33: 7623727.57 | L33: 7308278.53 | M33: 10165453.53 | N33: 7916484.02 | O33: 10257849.5 | P33: 13949953 | Q33: 13189987.82 | R33: 12063712.69 | S33: 8866573.54 | T33: 10171776.12
E34: v % | F34: neinvestiční výdaje | J34: 0.9267468184 | K34: 0.9139216656 | L34: 0.9199952894 | M34: 0.8977035304 | N34: 0.8980076686 | O34: 0.8557791218 | P34: 0.8297943315 | Q34: 0.8837924063 | R34: =R32/R31 -> 0.8947001612 | S34: =S32/S31 -> 0.9216912058 | T34: =T32/T31 -> 0.9109234689
F35: investiční výdaje | J35: 0.07325318156 | K35: 0.08607833443 | L35: 0.08000471063 | M35: 0.1022964696 | N35: 0.1019923314 | O35: 0.1442208782 | P35: 0.1702056685 | Q35: 0.1162075937 | R35: =R33/R31 -> 0.1052998388 | S35: =S33/S31 -> 0.07830879417 | T35: =T33/T31 -> 0.08907653114
D36: Podíl výdajů na regionální školství na celkových výdajích na školství z rozpočtu MŠMT; Obce a DSO, KÚ a podíl na HDP
E37: Výdaje na školství celkem2),3) | J37: 114.2477725 | K37: 121.3480397 | L37: 128.5541745 | M37: 141.2484394 | N37: 151.5849897 | O37: 149.7997268 | P37: 162.803504 | Q37: 161.8748019 | R37: 172.7687959 | S37: 170.3742654 | T37: 171.7249628
E38: Podíl výdajů na RgŠ na celkových výdajích | J38: =J13/1000000/J37 -> 0.7765527612 | K38: 0.7660535566 | L38: 0.7431234473 | M38: 0.729910366 | N38: 0.695114009 | O38: 0.7305332209 | P38: 0.7374008832 | Q38: 0.7323171626 | R38: =R13/1000000/R37 -> 0.6956691817 | S38: =S13/1000000/S37 -> 0.6961523593 | T38: =T13/1000000/T37 -> 0.6972038756
E39: HDP v běžných cenách v mld. Kč | J39: 2688.107 | K39: 2929.172 | L39: 3116.056 | M39: 3352.599 | N39: 3662.573 | O39: 3848.411 | P39: 3758.979 | Q39: 3790.88 | R39: 3823.401 | S39: 3845.926 | T39: 3883.78
E40: Výdaje na RgŠ v % HDP | J40: =J13/1000000/J39 -> 0.03300442401 | K40: 0.03173562269 | L40: 0.03065786408 | M40: 0.03075187344 | N40: 0.02876907843 | O40: 0.02843606801 | P40: 0.03193724882 | Q40: 0.0312707592 | R40: =R13/1000000/R39 -> 0.03143534431 | S40: =S13/1000000/S39 -> 0.03083950311 | T40: =T13/1000000/T39 -> 0.03082752101
D41: Komentáře: | T41: Zdroj: Státní závěrečný účet, ZÚ – kapitola 333-MŠMT; 700-Obce a DSO, KÚ; ČSÚ
D42: 1) | E42: Výdaje (za část 31–32–vzdělávání) neobsahují finanční prostředky určené na mezinárodní spolupráci (paragraf RS 3291).
D43: 2) | E43: Od roku 2004 celkové výdaje kapitoly 333-MŠMT a kapitoly 700-Obce a DSO; KÚ. Nejsou zahrnuty výdaje Ministerstva obrany.
D44: 3) | E44: Meziroční snížení výdajů v roce 2008 je dáno aplikací zákona č. 26/2008 Sb. a z něj vyplývajícím nepřeváděním nevyčerpaných prostředků OSS do rezervních fondů, a tudíž jejich nezahrnutím do čerpání.

Sheet B2.5
D4: Tab. B2.5: | H4: Regionální školství – týdenní rozsah hodin přímé pedagogické činnosti
D5: (míra vyučovací povinnosti) učitelů v letech 2004 až 2013
K6: hod/týdně
J7: 20041) | K7: 2004–20122)
E12: MŠ včetně speciálních | J12: 31 | K12: 31
E13: ZŠ včetně speciálních škol – 1. stupeň | J13: 22 | K13: 20–22
E14: ZŠ včetně speciálních škol – 2. stupeň a nižší ročníky víceletých G | J14: 22 | K14: 22
E15: SŠ včetně speciálních, konzervatoře a VOŠ | J15: 21 | K15: 21
D16: Komentáře: | K16: Zdroj: databáze MŠMT
D17: 1) | E17: NV č. 153/1999 Sb., kterým se mění NV č. 68/1997 Sb., kterou se stanoví míra vyučovací povinnosti učitelů a míra povinnosti výchovné práce ostatních pedagogických pracovníků ve školství, a NV č. 400/2002 Sb., kterým se mění NV č. 68/1997 Sb., ve znění NV č. 153/99 Sb.
D18: 2) | E18: Zákon č. 563/2004 Sb., o pedagogických pracovnících a o změně některých zákonů, a NV č. 273/2009 Sb., kterým se mění NV č. 75/2005 Sb., o stanovení rozsahu přímé vyučovací, přímé výchovné, přímé speciálně pedagogické a přímé pedagogicko-psychologické činnosti pedagogických pracovníků.

Sheet B2.6
D4: Tab. B2.6: | H4: Regionální školství – přepočtené počty zaměstnanců
D5: v letech 2004 až 2013
J7: 2003 | K7: 2004 | L7: 2005 | M7: 2006 | N7: 2007 | O7: 2008 | P7: 2009 | Q7: 2010 | R7: 2011 | S7: 2012 | T7: 2013
D12: Všichni zřizovatelé (bez jiných resortů)
E13: Zaměstnanci celkem | J13: 244248.254 | K13: 241290.158 | L13: 238113.3 | M13: 236084.974 | N13: 234899.479 | O13: 233315.317 | P13: 232614.73 | Q13: 233147.791 | R13: 231528.716 | S13: 229787.503 | T13: 229649.459
F14: z toho učitelé1) | J14: 137976.42 | K14: 136572.796 | L14: 137676.685 | M14: 133792.546 | N14: 132876.324 | O14: 131875.706 | P14: 131449.141 | Q14: 131867.996 | R14: 132046.231 | S14: 131718.656 | T14: 131368.384
D15: Komentáře: | T15: Zdroj: databáze MŠMT
D16: 1) | E16: Včetně vedoucích zaměstnanců.

Sheet B2.7
D4: Tab. B2.7: | H4: Regionální školství – průměrné měsíční mzdy
D5: v letech 2004 až 2013
J7: 2003 | K7: 2004 | L7: 2005 | M7: 2006 | N7: 2007 | O7: 2008 | P7: 2009 | Q7: 2010 | R7: 2011 | S7: 2012 | T7: 2013
D12: Všichni zřizovatelé (bez jiných resortů)
D13: Nominální mzda (v běžných cenách)
E14: Zaměstnanci celkem | J14: 15708 | K14: 16699 | L14: 17712.68059 | M14: 18787 | N14: 19842 | O14: 20519.08244 | P14: 21890.62531 | Q14: 21457.94822 | R14: 22059.45331 | S14: 22600.39345 | T14: 22736.16042
F15: z toho učitelé1) | J15: 18658 | K15: 19996 | L15: 21305.7627 | M15: 22598 | N15: 23858 | O15: 24661.29824 | P15: 26006.02578 | Q15: 25150.82918 | R15: 26011.55277 | S15: 26654.32859 | T15: 26815.83277
D16: Reálná mzda (ve stálých cenách roku 2005)
E17: Zaměstnanci celkem | J17: =J14/J$20*100 -> 16448.16754 | K17: =K14/K$20*100 -> 17022.4261 | L17: 17712.68059 | M17: 18328.78049 | N17: 18825.42694 | O17: 18304.26623 | P17: 19320.94026 | Q17: 18675.32482 | R17: =R14/R$20*100 -> 18838.13263 | S17: =S14/S$20*100 -> 18678.01112 | T17: 18529.8781
F18: z toho učitelé | J18: =J15/J$20*100 -> 19537.17277 | K18: =K15/K$20*100 -> 20383.28236 | L18: 21305.7627 | M18: 22046.82927 | N18: 22635.67362 | O18: 21999.37399 | P18: 22953.24429 | Q18: 21889.32044 | R18: =R15/R$20*100 -> 22213.11082 | S18: =S15/S$20*100 -> 22028.37074 | T18: 21854.79443
D19: Index spotřebitelských cen a meziroční inflace
E20: Index spotřebitelských cen (rok 2005 = 100) | J20: 95.5 | K20: 98.1 | L20: 100 | M20: 102.5 | N20: 105.4 | O20: 112.1 | P20: 113.3 | Q20: 114.9 | R20: 117.1 | S20: 121 | T20: 122.7
E21: Meziroční inflace | J21: 0.001 | K21: 0.028 | L21: 0.019 | M21: 0.025 | N21: 0.028 | O21: 0.063 | P21: 0.01 | Q21: 0.015 | R21: 0.019 | S21: 0.033 | T21: 0.014
D22: Komentáře: | T22: Zdroj: databáze MŠMT, ČSÚ
D23: 1) | E23: Včetně vedoucích zaměstnanců.

Sheet GB1
D4: Obr. B1: | G4: Regionální školství – školy ve školním roce 2004/05 až 2013/14 – podle druhu školy
J10: 2003/04 | K10: 2004/05 | L10: 2005/06 | M10: 2006/07 | N10: 2007/08 | O10: 2008/09 | P10: 2009/10 | Q10: 2010/11 | R10: 2011/12 | S10: 2012/13 | T10: 2013/14
I11: MŠ | J11: 5067 | K11: 4994 | L11: 4834 | M11: 4815 | N11: 4808 | O11: 4809 | P11: 4826 | Q11: 4877 | R11: 4931 | S11: 5011 | T11: 5085
I12: ZŠ | J12: 4838 | K12: 4765 | L12: 4474 | M12: 4197 | N12: 4155 | O12: 4133 | P12: 4125 | Q12: 4120 | R12: 4111 | S12: 4095 | T12: 4095
I13: SŠ | J13: 2006 | K13: 1966 | L13: 2004 | M13: 1482 | N13: 1447 | O13: 1438 | P13: 1433 | Q13: 1423 | R13: 1393 | S13: 1347 | T13: 1331
I14: Konzervatoře | J14: 17 | K14: 17 | L14: 17 | M14: 18 | N14: 19 | O14: 18 | P14: 17 | Q14: 18 | R14: 18 | S14: 18 | T14: 18
I15: VOŠ | J15: 169 | K15: 174 | L15: 176 | M15: 174 | N15: 177 | O15: 184 | P15: 184 | Q15: 182 | R15: 180 | S15: 178 | T15: 174
D33: Komentáře: | T33: Zdroj: databáze MŠMT
D34: 1) | E34: Ve školním roce 2004/05 MŠ a ZŠ včetně škol při zdravotnických zařízeních.
D35: 2) | E35: Do školního roku 2004/05 jsou MŠ a ZŠ započteny podle počtu jednotlivých pracovišť, od školního roku 2005/06 je uveden počet škol bez ohledu na počet těchto pracovišť. U středních škol, konzervatoří a VOŠ došlo k této změně vykazování o rok později.

Sheet GB2
D4: Obr. B2: | G4: Regionální školství – děti/žáci/studenti ve školním roce 2004/05 až 2013/14 – podle druhu školy
J10: 2003/04 | K10: 2004/05 | L10: 2005/06 | M10: 2006/07 | N10: 2007/08 | O10: 2008/09 | P10: 2009/10 | Q10: 2010/11 | R10: 2011/12 | S10: 2012/13 | T10: 2013/14
I11: MŠ | J11: 286340 | K11: 286230 | L11: 282183 | M11: 285419 | N11: 291194 | O11: 301620 | P11: 314008 | Q11: 328612 | R11: 342521 | S11: 354340 | T11: 363568
I12: ZŠ | J12: 998026 | K12: 958203 | L12: 916575 | M12: 876513 | N12: 844863 | O12: 816015 | P12: 794459 | Q12: 789486 | R12: 794642 | S12: 807950 | T12: 827654
I13: SŠ | J13: 576615 | K13: 579505 | L13: 577605 | M13: 576585 | N13: 569267 | O13: 564326 | P13: 556260 | Q13: 532918 | R13: 501220 | S13: 470754 | T13: 448792
I14: Konzervatoře | J14: 3543 | K14: 3505 | L14: 3495 | M14: 3534 | N14: 3606 | O14: 3535 | P14: 3435 | Q14: 3560 | R14: 3557 | S14: 3655 | T14: 3690
I15: VOŠ | J15: 30681 | K15: 29759 | L15: 28792 | M15: 27650 | N15: 28774 | O15: 28027 | P15: 28749 | Q15: 29800 | R15: 29335 | S15: 28980 | T15: 28332
D33: Komentáře | T33: Zdroj: databáze MŠMT
D34: 1) | E34: Ve školním roce 2004/05 MŠ a ZŠ včetně škol při zdravotnických zařízeních.

Sheet GB3
D4: Obr. B3: | H4: Regionální školství – děti/žáci/studenti ve školním roce 2004/05 a 2013/14 – podle zřizovatele
K10: 2004/05 | N10: 2013/14
J11: veřejný | K11: 1741851 | M11: veřejný | N11: 1574864
J12: privátní sektor | K12: 92665 | M12: privátní sektor | N12: 78203
J13: církev | K13: 16126 | M13: církev | N13: 18969
D27: Komentáře: | R27: Zdroj: databáze MŠMT
D28: 1) | E28: Ve školním roce 2004/05 MŠ a ZŠ včetně škol při zdravotnických zařízeních.

Sheet GB4
D4: Obr. B4: | G4: Regionální školství – všichni zřizovatelé – přepočtené počty zaměstnanců a učitelů,
D5: průměrné nominální a reálné mzdy v letech 2004 až 2013
I10: Pracovníci
J11: 2003 | K11: 2004 | L11: 2005 | M11: 2006 | N11: 2007 | O11: 2008 | P11: 2009 | Q11: 2010 | R11: 2011 | S11: 2012 | T11: 2013
I12: nominální mzdy | J12: 15708 | K12: 16699 | L12: 17712.68059 | M12: 18787 | N12: 19842 | O12: 20519.08244 | P12: 21890.62531 | Q12: 21457.94822 | R12: 22059.45331 | S12: 22600.39345 | T12: 22736.16042
I13: reálné mzdy | J13: 16448.16754 | K13: 17022.4261 | L13: 17712.68059 | M13: 18328.78049 | N13: 18825.42694 | O13: 18304.26623 | P13: 19320.94026 | Q13: 18675.32482 | R13: 18838.13263 | S13: 18678.01112 | T13: 18529.8781
I14: počty | J14: 244.248254 | K14: 241.290158 | L14: 238.1133 | M14: 236.084974 | N14: 234.899479 | O14: 233.315317 | P14: 232.61473 | Q14: 233.147791 | R14: 231.528716 | S14: 229.787503 | T14: 229.649459
I16: Učitelé
J17: 2003 | K17: 2004 | L17: 2005 | M17: 2006 | N17: 2007 | O17: 2008 | P17: 2009 | Q17: 2010 | R17: 2011 | S17: 2012 | T17: 2013
I18: nominální mzdy | J18: 18658 | K18: 19996 | L18: 21305.7627 | M18: 22598 | N18: 23858 | O18: 24661.29824 | P18: 26006.02578 | Q18: 25150.82918 | R18: 26011.55277 | S18: 26654.32859 | T18: 26815.83277
I19: reálné mzdy | J19: 19537.17277 | K19: 20383.28236 | L19: 21305.7627 | M19: 22046.82927 | N19: 22635.67362 | O19: 21999.37399 | P19: 22953.24429 | Q19: 21889.32044 | R19: 22213.11082 | S19: 22028.37074 | T19: 21854.79443
I20: počty | J20: 137.97642 | K20: 136.572796 | L20: 137.676685 | M20: 133.792546 | N20: 132.876324 | O20: 131.875706 | P20: 131.449141 | Q20: 131.867996 | R20: 132.046231 | S20: 131.718656 | T20: 131.368384
D53: Komentáře: | T53: Zdroj: databáze MŠMT
E54: Průměrná reálná měsíční mzda ve stálých cenách roku 2005.
D55: 1) | E55: Učitelé včetně vedoucích zaměstnanců.
